[Event "28th CRO-chT 1B-Men 2019"]
[Site "Mali Losinj"]
[Date "2019.10.05"]
[Round "8.2"]
[White "Tratar, Marko"]
[Black "Nikcevic, Nebojsa"]
[Result "0-1"]
[ECO "A28"]
[WhiteElo "2461"]
[BlackElo "2415"]
[Annotator "ChessBase"]
[PlyCount "114"]
[EventDate "2019.09.28"]
[EventType "team-tourn"]
[EventCountry "CRO"]
[SourceTitle "playchess.com"]
[Source "ChessBase"]
[SourceQuality "1"]
[TimeControl "40/5400+30:1800+30"]

1. c4 {[%emt 0:00:30]} e5 {[%emt 0:02:30]} 2. Nc3 {[%emt 0:00:00]} Nf6 {[%emt 0:00:30]} 3. Nf3 {[%emt 0:00:00]} Nc6 {[%emt 0:00:30]} 4. e4 {[%emt 0:00:30]} d6 {[%emt 0:03:30]} 5. d3 {[%emt 0:14:30]} g6 {[%emt 0:03:30]} 6. g3 {[%emt 0:07:30]} Bg7 {[%emt 0:00:30]} 7. Bg2 {[%emt 0:00:00]} O-O {[%emt 0:04:30]} 8. Nd5 {[%emt 0:06:00]} Bg4 {[%emt 0:05:30]} 9. Be3 {[%emt 0:18:30]} Nxd5 {[%emt 0:10:30]} 10. cxd5 {[%emt 0:01:30]} Nd4 {[%emt 0:00:30]} 11. Bxd4 {[%emt 0:01:30]} exd4 {[%emt 0:00:30]} 12. O-O {[%emt 0:09:30]} c5 {[%emt 0:01:30]} 13. dxc6 {[%emt 0:03:30]} bxc6 {[%emt 0:00:30]} 14. h3 {[%emt 0:00:30]} Be6 {[%emt 0:06:30]} 15. Nd2 {[%emt 0:00:30]} Rb8 {[%emt 0:00:00]} 16. b3 {[%emt 0:00:00]} Rb5 {[%emt 0:14:00]} 17. Rc1 {[%emt 0:04:00]} Qd7 {[%emt 0:00:30]} 18. h4 {[%emt 0:00:30]} Ra5 {[%emt 0:01:30]} 19. Rc2 {[%emt 0:00:30]} Ra6 {[%emt 0:17:30]} 20. f4 {[%emt 0:02:30]} f5 {[%emt 0:00:30]} 21. Re1 {[%emt 0:01:30]} Re8 {[%emt 0:03:30]} 22. Kh2 {[%emt 0:08:12]} d5 {[%emt 0:03:07]} 23. exd5 {[%emt 0:14:20]} cxd5 {[%emt 0:06:56]} 24. Nf3 {[%emt 0:01:00]} Bf7 {[%emt 0:00:46]} 25. Rxe8+ {[%emt 0:00:58]} Qxe8 {[%emt 0:00:41]} 26. Ng5 {[%emt 0:01:03]} Rd6 {[%emt 0:05:46]} 27. Rc7 {[%emt 0:02:21]} Rd7 {[%emt 0:01:31]} 28. Qc2 {[%emt 0:00:30]} Bf6 {[%emt 0:02:09]} 29. Nxf7 {[%emt 0:00:43]} Qxf7 {[%emt 0:00:33]} 30. Rxd7 {[%emt 0:00:10]} Qxd7 {[%emt 0:00:05]} 31. Qc5 {[%emt 0:00:06]} Kg7 {[%emt 0:00:13]} 32. Bxd5 {[%emt 0:01:11]} Qe7 {[%emt 0:00:08]} 33. Qc2 {[%emt 0:01:19]} Bxh4 {[%emt 0:05:05]} 34. gxh4 {[%emt 0:00:37]} Qxh4+ {[%emt 0:00:04]} 35. Kg1 {[%emt 0:00:18]} Qxf4 {[%emt 0:00:16]} 36. Qf2 {[%emt 0:01:02]} Qe5 {[%emt 0:00:29]} 37. Bf3 {[%emt 0:00:24]} g5 {[%emt 0:01:25]} 38. Qe2 {[%emt 0:00:28]} Qd6 {[%emt 0:00:34]} 39. Qh2 {[%emt 0:00:32]} Qe7 {[%emt 0:00:32]} 40. Qf2 {[%emt 0:00:00]} Qe5 {[%emt 0:00:00]} 41. b4 {[%emt 0:06:46]} g4 {[%emt 0:01:40]} 42. Bg2 {[%emt 0:03:30]} Kg6 {[%emt 0:06:30]} 43. a4 {[%emt 0:00:30]} h5 {[%emt 0:05:08]} 44. b5 {[%emt 0:01:30]} h4 {[%emt 0:01:51]} 45. Qxh4 {[%emt 0:04:03]} g3 {[%emt 0:05:38]} 46. Qh3 {[%emt 0:00:07]} Qe3+ {[%emt 0:00:14]} 47. Kh1 {[%emt 0:00:05]} Qxd3 {[%emt 0:00:07]} 48. Bf1 {[%emt 0:00:54]} Qe3 {[%emt 0:01:47]} 49. Kg2 {[%emt 0:05:11]} Qf2+ {[%emt 0:02:12]} 50. Kh1 {[%emt 0:00:01]} d3 {[%emt 0:00:56]} 51. Bxd3 {[%emt 0:05:57]} Qf3+ {[%emt 0:00:31]} 52. Kg1 {[%emt 0:00:05]} Qxd3 {[%emt 0:00:17]} 53. a5 {[%emt 0:01:02]} Kg5 {[%emt 0:03:18]} 54. Qf1 {[%emt 0:03:03]} Qc2 {[%emt 0:06:19]} 55. Qf3 {[%emt 0:00:15]} Qc5+ {[%emt 0:00:41]} 56. Kh1 {[%emt 0:03:13]} f4 {[%emt 0:00:57]} 57. Qc6 {[%emt 0:00:10]} Qe5 {[%emt 0:00:09]} 0-1

[Event "28th CRO-chT 1B-Men 2019"]
[Site "Mali Losinj"]
[Date "2019.10.05"]
[Round "8.3"]
[White "Matkovic, Tonci"]
[Black "Fercec, Nenad"]
[Result "1-0"]
[ECO "B90"]
[WhiteElo "2281"]
[BlackElo "2445"]
[Annotator "ChessBase"]
[PlyCount "105"]
[EventDate "2019.09.28"]
[EventType "team-tourn"]
[EventCountry "CRO"]
[SourceTitle "playchess.com"]
[Source "ChessBase"]
[SourceQuality "1"]
[TimeControl "40/5400+30:1800+30"]

1. e4 {[%emt 0:00:30]} c5 {[%emt 0:00:30]} 2. Nf3 {[%emt 0:00:00]} d6 {[%emt 0:00:30]} 3. d4 {[%emt 0:00:00]} cxd4 {[%emt 0:00:30]} 4. Nxd4 {[%emt 0:00:00]} Nf6 {[%emt 0:00:30]} 5. Nc3 {[%emt 0:00:00]} a6 {[%emt 0:00:00]} 6. Be3 {[%emt 0:00:30]} e5 {[%emt 0:01:00]} 7. Nb3 {[%emt 0:00:00]} Be6 {[%emt 0:00:30]} 8. a4 {[%emt 0:07:00]} Nbd7 {[%emt 0:00:30]} 9. Be2 {[%emt 0:00:00]} Nb6 {[%emt 0:04:30]} 10. O-O {[%emt 0:02:00]} Nc4 {[%emt 0:02:30]} 11. Bxc4 {[%emt 0:00:30]} Bxc4 {[%emt 0:00:00]} 12. Re1 {[%emt 0:00:30]} Be7 {[%emt 0:01:00]} 13. Bg5 {[%emt 0:03:30]} O-O {[%emt 0:03:30]} 14. Bxf6 {[%emt 0:00:30]} Bxf6 {[%emt 0:00:00]} 15. Nd5 {[%emt 0:00:00]} Bg5 {[%emt 0:00:00]} 16. a5 {[%emt 0:00:00]} Rc8 {[%emt 0:01:30]} 17. c3 {[%emt 0:06:30]} g6 {[%emt 0:16:30]} 18. Nb6 {[%emt 0:00:00]} Rc6 {[%emt 0:00:30]} 19. Nd2 {[%emt 0:06:00]} Be6 {[%emt 0:00:30]} 20. Nf3 {[%emt 0:00:30]} Bh6 {[%emt 0:04:30]} 21. Qd3 {[%emt 0:05:30]} f5 {[%emt 0:11:30]} 22. Rad1 {[%emt 0:07:30]} fxe4 {[%emt 0:01:30]} 23. Qxe4 {[%emt 0:07:30]} Qf6 {[%emt 0:03:30]} 24. Nd5 {[%emt 0:03:30]} Qf7 {[%emt 0:01:30]} 25. c4 {[%emt 0:00:30]} Kg7 {[%emt 0:02:30]} 26. b3 {[%emt 0:08:30]} Bf5 {[%emt 0:10:30]} 27. Qe2 {[%emt 0:00:30]} Bg4 {[%emt 0:00:30]} 28. Nb4 {[%emt 0:04:30]} Bxf3 {[%emt 0:00:00]} 29. Qxf3 {[%emt 0:11:30]} Qxf3 {[%emt 0:00:00]} 30. gxf3 {[%emt 0:00:30]} Rc5 {[%emt 0:00:30]} 31. Rxd6 {[%emt 0:01:30]} Rxa5 {[%emt 0:00:30]} 32. Rb6 {[%emt 0:03:30]} Bd2 {[%emt 0:21:06]} 33. Re2 {[%emt 0:04:45]} Bxb4 {[%emt 0:03:06]} 34. Rxb7+ {[%emt 0:00:16]} Kh6 {[%emt 0:01:05]} 35. Rxb4 {[%emt 0:00:09]} Rxf3 {[%emt 0:00:09]} 36. Kg2 {[%emt 0:04:04]} Rc3 {[%emt 0:03:05]} 37. Rb6 {[%emt 0:04:02]} Rc5 {[%emt 0:03:17]} 38. Re3 {[%emt 0:00:28]} Rxe3 {[%emt 0:00:51]} 39. fxe3 {[%emt 0:00:10]} Ra5 {[%emt 0:00:09]} 40. Kf3 {[%emt 0:00:00]} Ra2 {[%emt 0:00:00]} 41. Ke4 {[%emt 0:01:36]} a5 {[%emt 0:01:12]} 42. c5 {[%emt 0:00:30]} Rxh2 {[%emt 0:00:30]} 43. c6 {[%emt 0:00:30]} Rc2 {[%emt 0:21:17]} 44. Kd5 {[%emt 0:00:30]} Rd2+ {[%emt 0:00:14]} 45. Kxe5 {[%emt 0:00:30]} Rc2 {[%emt 0:00:27]} 46. Kd6 {[%emt 0:01:30]} Rd2+ {[%emt 0:00:05]} 47. Ke7 {[%emt 0:00:30]} Rc2 {[%emt 0:00:04]} 48. Kd7 {[%emt 0:00:30]} Rd2+ {[%emt 0:00:08]} 49. Kc8 {[%emt 0:00:30]} Re2 {[%emt 0:00:10]} 50. c7 {[%emt 0:00:30]} Rxe3 {[%emt 0:00:05]} 51. Kd7 {[%emt 0:01:30]} Rd3+ {[%emt 0:00:24]} 52. Rd6 {[%emt 0:00:30]} Rc3 {[%emt 0:00:25]} 53. Rc6 {[%emt 0:00:30]} 1-0

[Event "28th CRO-chT 1B-Men 2019"]
[Site "Mali Losinj"]
[Date "2019.10.05"]
[Round "8.4"]
[White "Zufic, Miroslav"]
[Black "Malenica, Mario"]
[Result "1-0"]
[ECO "B35"]
[WhiteElo "2367"]
[BlackElo "2221"]
[Annotator "ChessBase"]
[PlyCount "77"]
[EventDate "2019.09.28"]
[EventType "team-tourn"]
[EventCountry "CRO"]
[SourceTitle "playchess.com"]
[Source "ChessBase"]
[SourceQuality "1"]
[TimeControl "40/5400+30:1800+30"]

1. e4 {[%emt 0:00:30]} c5 {[%emt 0:00:30]} 2. Nf3 {[%emt 0:00:00]} Nc6 {[%emt 0:00:30]} 3. d4 {[%emt 0:00:00]} cxd4 {[%emt 0:00:30]} 4. Nxd4 {[%emt 0:00:30]} g6 {[%emt 0:00:00]} 5. Nc3 {[%emt 0:00:30]} Bg7 {[%emt 0:00:00]} 6. Be3 {[%emt 0:00:30]} Nf6 {[%emt 0:00:30]} 7. Bc4 {[%emt 0:00:00]} O-O {[%emt 0:00:30]} 8. Bb3 {[%emt 0:00:00]} a5 {[%emt 0:02:30]} 9. Ndb5 {[%emt 0:04:30]} d6 {[%emt 0:06:30]} 10. f3 {[%emt 0:08:30]} Nd7 {[%emt 0:09:30]} 11. Na4 {[%emt 0:06:30]} b6 {[%emt 0:09:30]} 12. Qd2 {[%emt 0:20:30]} Ba6 {[%emt 0:09:30]} 13. c4 {[%emt 0:00:30]} Nc5 {[%emt 0:04:30]} 14. O-O {[%emt 0:02:30]} Rb8 {[%emt 0:05:30]} 15. Nac3 {[%emt 0:08:30]} Nxb3 {[%emt 0:11:30]} 16. axb3 {[%emt 0:00:30]} Nb4 {[%emt 0:00:30]} 17. Nd4 {[%emt 0:02:30]} Qc8 {[%emt 0:02:30]} 18. Nd5 {[%emt 0:08:30]} Nxd5 {[%emt 0:01:30]} 19. exd5 {[%emt 0:00:00]} Bb7 {[%emt 0:03:30]} 20. Nb5 {[%emt 0:07:00]} Ba8 {[%emt 0:04:30]} 21. Rfe1 {[%emt 0:02:30]} Re8 {[%emt 0:03:30]} 22. Qf2 {[%emt 0:08:01]} Qd7 {[%emt 0:01:30]} 23. Bxb6 {[%emt 0:03:26]} Bxb2 {[%emt 0:06:31]} 24. Qxb2 {[%emt 0:03:59]} Rxb6 {[%emt 0:00:06]} 25. Rxa5 {[%emt 0:00:23]} Rbb8 {[%emt 0:06:30]} 26. Ra7 {[%emt 0:03:09]} Bb7 {[%emt 0:01:00]} 27. Qd4 {[%emt 0:01:28]} e6 {[%emt 0:03:08]} 28. dxe6 {[%emt 0:00:42]} Rxe6 {[%emt 0:00:06]} 29. Rxe6 {[%emt 0:01:36]} Qxe6 {[%emt 0:00:08]} 30. h3 {[%emt 0:01:27]} d5 {[%emt 0:02:39]} 31. Qf4 {[%emt 0:02:29]} Qc8 {[%emt 0:02:21]} 32. Kh2 {[%emt 0:01:17]} dxc4 {[%emt 0:01:10]} 33. bxc4 {[%emt 0:00:15]} Qf8 {[%emt 0:00:11]} 34. Nd6 {[%emt 0:00:40]} Qe7 {[%emt 0:00:44]} 35. c5 {[%emt 0:01:42]} Qc7 {[%emt 0:01:03]} 36. c6 {[%emt 0:01:24]} Qxc6 {[%emt 0:00:52]} 37. Qxf7+ {[%emt 0:00:07]} Kh8 {[%emt 0:00:03]} 38. Nxb7 {[%emt 0:00:31]} g5 {[%emt 0:01:29]} 39. Nd8 {[%emt 0:00:59]} 1-0

[Event "28th CRO-chT 1B-Men 2019"]
[Site "Mali Losinj"]
[Date "2019.10.05"]
[Round "8.5"]
[White "Grgurevic, Boris"]
[Black "Franic, Milan"]
[Result "1/2-1/2"]
[ECO "B00"]
[WhiteElo "2177"]
[BlackElo "2366"]
[Annotator "ChessBase"]
[PlyCount "121"]
[EventDate "2019.09.28"]
[EventType "team-tourn"]
[EventCountry "CRO"]
[SourceTitle "playchess.com"]
[Source "ChessBase"]
[SourceQuality "1"]
[TimeControl "40/5400+30:1800+30"]

1. e4 {[%emt 0:01:30]} b6 {[%emt 0:00:30]} 2. d4 {[%emt 0:00:30]} Bb7 {[%emt 0:00:30]} 3. Bd3 {[%emt 0:00:30]} Nf6 {[%emt 0:00:00]} 4. Qe2 {[%emt 0:00:30]} Nc6 {[%emt 0:00:00]} 5. c3 {[%emt 0:00:30]} e5 {[%emt 0:00:00]} 6. d5 {[%emt 0:07:30]} Ne7 {[%emt 0:00:00]} 7. Nh3 {[%emt 0:01:30]} c6 {[%emt 0:00:30]} 8. c4 {[%emt 0:00:30]} Ng6 {[%emt 0:00:00]} 9. O-O {[%emt 0:00:30]} Bc5 {[%emt 0:00:00]} 10. Nd2 {[%emt 0:02:30]} O-O {[%emt 0:07:30]} 11. Nb3 {[%emt 0:00:30]} Bd6 {[%emt 0:01:30]} 12. Be3 {[%emt 0:02:30]} Qe7 {[%emt 0:06:30]} 13. Rac1 {[%emt 0:02:30]} Rfc8 {[%emt 0:04:30]} 14. Rfd1 {[%emt 0:07:30]} Rc7 {[%emt 0:08:30]} 15. f3 {[%emt 0:07:30]} Rac8 {[%emt 0:01:30]} 16. Qf2 {[%emt 0:02:30]} Ba8 {[%emt 0:06:30]} 17. Bf1 {[%emt 0:01:30]} h6 {[%emt 0:02:30]} 18. Qd2 {[%emt 0:06:30]} Ne8 {[%emt 0:00:00]} 19. Nf2 {[%emt 0:00:30]} Bb4 {[%emt 0:04:00]} 20. Qd3 {[%emt 0:01:30]} Nf4 {[%emt 0:13:30]} 21. Qb1 {[%emt 0:02:30]} Bd6 {[%emt 0:11:30]} 22. g3 {[%emt 0:02:30]} Ng6 {[%emt 0:00:00]} 23. Nd3 {[%emt 0:07:30]} cxd5 {[%emt 0:05:00]} 24. cxd5 {[%emt 0:02:30]} Qd8 {[%emt 0:00:30]} 25. Nd2 {[%emt 0:05:30]} Bb7 {[%emt 0:04:30]} 26. Rxc7 {[%emt 0:09:30]} Rxc7 {[%emt 0:00:30]} 27. b4 {[%emt 0:09:37]} Qc8 {[%emt 0:01:30]} 28. a3 {[%emt 0:00:21]} f5 {[%emt 0:02:50]} 29. Rc1 {[%emt 0:00:44]} fxe4 {[%emt 0:00:10]} 30. fxe4 {[%emt 0:00:11]} Nf6 {[%emt 0:00:30]} 31. h3 {[%emt 0:01:56]} Ba6 {[%emt 0:02:39]} 32. Rxc7 {[%emt 0:01:15]} Qxc7 {[%emt 0:00:09]} 33. Qc1 {[%emt 0:00:13]} Bxd3 {[%emt 0:03:22]} 34. Qxc7 {[%emt 0:00:10]} Bxc7 {[%emt 0:00:05]} 35. Bxd3 {[%emt 0:00:06]} Kf7 {[%emt 0:00:34]} 36. Kf2 {[%emt 0:02:34]} Ne8 {[%emt 0:02:04]} 37. Ba6 {[%emt 0:02:01]} Nd6 {[%emt 0:00:33]} 38. a4 {[%emt 0:00:22]} Bd8 {[%emt 0:04:30]} 39. h4 {[%emt 0:01:49]} Nf8 {[%emt 0:00:53]} 40. Kf3 {[%emt 0:00:00]} Nh7 {[%emt 0:00:00]} 41. Nc4 {[%emt 0:02:11]} Nxc4 {[%emt 0:01:41]} 42. Bxc4 {[%emt 0:00:30]} Nf6 {[%emt 0:17:30]} 43. Bd3 {[%emt 0:04:30]} Be7 {[%emt 0:01:30]} 44. Bd2 {[%emt 0:00:30]} h5 {[%emt 0:00:30]} 45. Ke2 {[%emt 0:03:30]} Ke8 {[%emt 0:00:30]} 46. Kd1 {[%emt 0:04:30]} Kd8 {[%emt 0:00:30]} 47. Kc2 {[%emt 0:00:30]} Kc7 {[%emt 0:00:30]} 48. Kb3 {[%emt 0:02:30]} Kb7 {[%emt 0:02:21]} 49. Bg5 {[%emt 0:03:30]} Ng8 {[%emt 0:02:07]} 50. Be3 {[%emt 0:02:30]} a6 {[%emt 0:02:24]} 51. Kc4 {[%emt 0:00:56]} Nf6 {[%emt 0:03:11]} 52. Bg5 {[%emt 0:00:50]} d6 {[%emt 0:00:12]} 53. Be2 {[%emt 0:01:33]} g6 {[%emt 0:00:07]} 54. Kd3 {[%emt 0:05:05]} Bd8 {[%emt 0:00:15]} 55. Bf1 {[%emt 0:01:13]} Kc7 {[%emt 0:00:53]} 56. Bd2 {[%emt 0:03:12]} Ng4 {[%emt 0:00:56]} 57. Ke2 {[%emt 0:00:46]} b5 {[%emt 0:02:18]} 58. axb5 {[%emt 0:03:38]} axb5 {[%emt 0:00:06]} 59. Ke1 {[%emt 0:00:38]} Kb6 {[%emt 0:00:07]} 60. Be2 {[%emt 0:00:22]} Ka6 {[%emt 0:00:55]} 61. Kf1 {[%emt 0:00:38]} 1/2-1/2

[Event "28th CRO-chT 1B-Men 2019"]
[Site "Mali Losinj"]
[Date "2019.10.05"]
[Round "8.6"]
[White "Krsnik Cohar, Ivan Vihor"]
[Black "Tesla, Miro"]
[Result "1-0"]
[ECO "A45"]
[WhiteElo "2340"]
[BlackElo "2073"]
[Annotator "ChessBase"]
[PlyCount "77"]
[EventDate "2019.09.28"]
[EventType "team-tourn"]
[EventCountry "CRO"]
[SourceTitle "playchess.com"]
[Source "ChessBase"]
[SourceQuality "1"]
[TimeControl "40/5400+30:1800+30"]

1. d4 {[%emt 0:00:30]} Nf6 {[%emt 0:00:30]} 2. Bg5 {[%emt 0:00:00]} Ne4 {[%emt 0:00:30]} 3. Bf4 {[%emt 0:00:00]} d5 {[%emt 0:01:30]} 4. Nd2 {[%emt 0:00:30]} Bf5 {[%emt 0:01:30]} 5. Nxe4 {[%emt 0:00:30]} Bxe4 {[%emt 0:00:30]} 6. e3 {[%emt 0:00:30]} c5 {[%emt 0:02:30]} 7. Bxb8 {[%emt 0:00:30]} Qxb8 {[%emt 0:00:30]} 8. Bb5+ {[%emt 0:00:30]} Kd8 {[%emt 0:00:00]} 9. dxc5 {[%emt 0:01:30]} e6 {[%emt 0:02:00]} 10. Nf3 {[%emt 0:01:30]} Bxc5 {[%emt 0:01:30]} 11. O-O {[%emt 0:00:30]} Ke7 {[%emt 0:01:30]} 12. Bd3 {[%emt 0:08:30]} Bxf3 {[%emt 0:01:30]} 13. Qxf3 {[%emt 0:00:00]} Qe5 {[%emt 0:00:30]} 14. c4 {[%emt 0:00:00]} Rhd8 {[%emt 0:04:30]} 15. Rfd1 {[%emt 0:01:30]} Kf8 {[%emt 0:04:30]} 16. cxd5 {[%emt 0:01:30]} exd5 {[%emt 0:00:30]} 17. Bxh7 {[%emt 0:00:00]} Rd6 {[%emt 0:02:30]} 18. Bc2 {[%emt 0:02:00]} Rad8 {[%emt 0:02:30]} 19. Bb3 {[%emt 0:04:30]} Qxb2 {[%emt 0:11:30]} 20. Rab1 {[%emt 0:00:30]} Qe5 {[%emt 0:00:30]} 21. Rd3 {[%emt 0:01:30]} R8d7 {[%emt 0:09:30]} 22. Ba4 {[%emt 0:00:30]} Re7 {[%emt 0:05:30]} 23. Qh3 {[%emt 0:00:30]} f5 {[%emt 0:01:30]} 24. Qh8+ {[%emt 0:06:30]} Kf7 {[%emt 0:00:00]} 25. Qc8 {[%emt 0:06:30]} Bb6 {[%emt 0:08:00]} 26. Bb3 {[%emt 0:05:30]} Rc7 {[%emt 0:09:30]} 27. Qa8 {[%emt 0:00:30]} Kg6 {[%emt 0:06:30]} 28. Rbd1 {[%emt 0:03:30]} Kh7 {[%emt 0:04:27]} 29. g3 {[%emt 0:01:30]} d4 {[%emt 0:02:59]} 30. Qg8+ {[%emt 0:00:30]} Kg6 {[%emt 0:00:15]} 31. h4 {[%emt 0:01:30]} Kh5 {[%emt 0:05:49]} 32. exd4 {[%emt 0:01:30]} Bxd4 {[%emt 0:04:19]} 33. Rxd4 {[%emt 0:00:00]} Rxd4 {[%emt 0:00:20]} 34. Qh7+ {[%emt 0:00:00]} Kg4 {[%emt 0:00:17]} 35. Rxd4+ {[%emt 0:00:30]} Qxd4 {[%emt 0:00:41]} 36. Qg6+ {[%emt 0:01:30]} Kh3 {[%emt 0:03:30]} 37. Qxf5+ {[%emt 0:00:00]} Qg4 {[%emt 0:00:05]} 38. Qb1 {[%emt 0:00:00]} Rc3 {[%emt 0:02:30]} 39. Qf1# {[%emt 0:00:30]} 1-0

[Event "28th CRO-chT 1B-Men 2019"]
[Site "Mali Losinj"]
[Date "2019.10.05"]
[Round "8.7"]
[White "Ivic, Velimir"]
[Black "Sokolov, Ivan"]
[Result "1/2-1/2"]
[ECO "C77"]
[WhiteElo "2525"]
[BlackElo "2584"]
[Annotator "ChessBase"]
[PlyCount "74"]
[EventDate "2019.09.28"]
[EventType "team-tourn"]
[EventCountry "CRO"]
[SourceTitle "playchess.com"]
[Source "ChessBase"]
[SourceQuality "1"]
[TimeControl "40/5400+30:1800+30"]

1. e4 {[%emt 0:00:30]} e5 {[%emt 0:11:30]} 2. Nf3 {[%emt 0:00:00]} Nc6 {[%emt 0:00:30]} 3. Bb5 {[%emt 0:00:00]} a6 {[%emt 0:00:00]} 4. Ba4 {[%emt 0:00:30]} Nf6 {[%emt 0:00:00]} 5. O-O {[%emt 0:00:00]} Be7 {[%emt 0:00:30]} 6. d3 {[%emt 0:00:00]} d6 {[%emt 0:00:00]} 7. c3 {[%emt 0:00:30]} O-O {[%emt 0:00:00]} 8. Nbd2 {[%emt 0:00:30]} Nd7 {[%emt 0:02:30]} 9. Re1 {[%emt 0:00:30]} Nb6 {[%emt 0:00:30]} 10. Bb3 {[%emt 0:00:30]} Kh8 {[%emt 0:03:30]} 11. d4 {[%emt 0:00:30]} exd4 {[%emt 0:01:30]} 12. Nxd4 {[%emt 0:00:00]} Bg5 {[%emt 0:01:30]} 13. Nxc6 {[%emt 0:01:00]} bxc6 {[%emt 0:00:00]} 14. e5 {[%emt 0:00:30]} d5 {[%emt 0:08:00]} 15. Nf3 {[%emt 0:01:30]} Bxc1 {[%emt 0:00:30]} 16. Qxc1 {[%emt 0:00:30]} Bg4 {[%emt 0:21:30]} 17. Qf4 {[%emt 0:03:30]} Bxf3 {[%emt 0:01:30]} 18. Qxf3 {[%emt 0:00:30]} Qg5 {[%emt 0:00:00]} 19. Re3 {[%emt 0:30:30]} a5 {[%emt 0:01:00]} 20. a3 {[%emt 0:02:30]} Nd7 {[%emt 0:14:30]} 21. Rae1 {[%emt 0:13:30]} Nc5 {[%emt 0:04:30]} 22. Bc2 {[%emt 0:01:30]} Rab8 {[%emt 0:00:30]} 23. b4 {[%emt 0:03:30]} axb4 {[%emt 0:03:30]} 24. axb4 {[%emt 0:00:30]} Ne6 {[%emt 0:00:30]} 25. g3 {[%emt 0:02:30]} Kg8 {[%emt 0:04:30]} 26. h4 {[%emt 0:12:30]} Qh6 {[%emt 0:00:30]} 27. Qg2 {[%emt 0:14:09]} d4 {[%emt 0:00:51]} 28. Rd3 {[%emt 0:00:54]} dxc3 {[%emt 0:01:07]} 29. Qxc6 {[%emt 0:00:34]} Rxb4 {[%emt 0:00:10]} 30. Qxc3 {[%emt 0:01:30]} Rfb8 {[%emt 0:01:05]} 31. Rd7 {[%emt 0:02:23]} Qh5 {[%emt 0:02:30]} 32. Be4 {[%emt 0:04:45]} Rb3 {[%emt 0:01:31]} 33. Qd2 {[%emt 0:01:08]} Rb2 {[%emt 0:09:07]} 34. Qd1 {[%emt 0:01:08]} Qxd1 {[%emt 0:00:58]} 35. Rexd1 {[%emt 0:00:27]} Re2 {[%emt 0:01:13]} 36. Bd5 {[%emt 0:00:43]} Rxe5 {[%emt 0:00:05]} 37. Bxe6 {[%emt 0:00:04]} Rxe6 {[%emt 0:01:20]} 1/2-1/2

[Event "28th CRO-chT 1B-Men 2019"]
[Site "Mali Losinj"]
[Date "2019.10.05"]
[Round "8.8"]
[White "Nemeth, Miklos"]
[Black "Doric, Darko"]
[Result "0-1"]
[ECO "B12"]
[WhiteElo "2488"]
[BlackElo "2476"]
[Annotator "ChessBase"]
[PlyCount "52"]
[EventDate "2019.09.28"]
[EventType "team-tourn"]
[EventCountry "CRO"]
[SourceTitle "playchess.com"]
[Source "ChessBase"]
[SourceQuality "1"]
[TimeControl "40/5400+30:1800+30"]

1. e4 {[%emt 0:02:30]} c6 {[%emt 0:00:30]} 2. d4 {[%emt 0:00:00]} d5 {[%emt 0:00:00]} 3. e5 {[%emt 0:00:00]} c5 {[%emt 0:00:00]} 4. dxc5 {[%emt 0:00:30]} e6 {[%emt 0:00:00]} 5. a3 {[%emt 0:00:00]} Bxc5 {[%emt 0:00:00]} 6. b4 {[%emt 0:00:00]} Bb6 {[%emt 0:00:00]} 7. Qg4 {[%emt 0:02:30]} Ne7 {[%emt 0:00:00]} 8. Bd3 {[%emt 0:00:30]} Ng6 {[%emt 0:01:30]} 9. Nf3 {[%emt 0:00:30]} O-O {[%emt 0:00:30]} 10. Bb2 {[%emt 0:08:30]} f5 {[%emt 0:00:30]} 11. exf6 {[%emt 0:07:30]} e5 {[%emt 0:00:30]} 12. Qh5 {[%emt 0:04:30]} e4 {[%emt 0:02:30]} 13. Ng5 {[%emt 0:02:30]} Bxf2+ {[%emt 0:08:30]} 14. Kd1 {[%emt 0:14:30]} Rxf6 {[%emt 0:00:30]} 15. Qxh7+ {[%emt 0:05:30]} Kf8 {[%emt 0:00:30]} 16. Be2 {[%emt 0:01:30]} Nc6 {[%emt 0:15:30]} 17. Rf1 {[%emt 0:15:30]} e3 {[%emt 0:00:30]} 18. h4 {[%emt 0:09:30]} d4 {[%emt 0:11:30]} 19. h5 {[%emt 0:00:30]} Qd5 {[%emt 0:12:30]} 20. hxg6 {[%emt 0:02:30]} Qxg5 {[%emt 0:01:30]} 21. Qh8+ {[%emt 0:05:26]} Ke7 {[%emt 0:00:30]} 22. Qxg7+ {[%emt 0:00:22]} Kd6 {[%emt 0:00:30]} 23. Nc3 {[%emt 0:01:25]} dxc3 {[%emt 0:01:30]} 24. Bxc3 {[%emt 0:00:05]} Rxg6 {[%emt 0:00:30]} 25. Qf8+ {[%emt 0:00:23]} Kc7 {[%emt 0:00:30]} 26. b5 {[%emt 0:01:10]} Qd8+ {[%emt 0:09:30]} 0-1

[Event "28th CRO-chT 1B-Men 2019"]
[Site "Mali Losinj"]
[Date "2019.10.05"]
[Round "8.9"]
[White "Plenkovic, Zdenko"]
[Black "Krstic, Uros"]
[Result "0-1"]
[ECO "D00"]
[WhiteElo "2368"]
[BlackElo "2354"]
[Annotator "ChessBase"]
[PlyCount "80"]
[EventDate "2019.09.28"]
[EventType "team-tourn"]
[EventCountry "CRO"]
[SourceTitle "playchess.com"]
[Source "ChessBase"]
[SourceQuality "1"]
[TimeControl "40/5400+30:1800+30"]

1. d4 {[%emt 0:02:30]} Nf6 {[%emt 0:00:30]} 2. Nf3 {[%emt 0:00:30]} g6 {[%emt 0:00:30]} 3. Nc3 {[%emt 0:00:30]} d5 {[%emt 0:07:30]} 4. Bf4 {[%emt 0:00:30]} c6 {[%emt 0:00:00]} 5. e3 {[%emt 0:01:30]} Bg7 {[%emt 0:02:00]} 6. Be2 {[%emt 0:04:30]} Nbd7 {[%emt 0:13:30]} 7. h3 {[%emt 0:12:30]} O-O {[%emt 0:04:30]} 8. Qd2 {[%emt 0:06:30]} b5 {[%emt 0:14:30]} 9. a3 {[%emt 0:03:30]} a5 {[%emt 0:00:30]} 10. O-O {[%emt 0:00:30]} Bb7 {[%emt 0:04:30]} 11. Rfd1 {[%emt 0:05:30]} Nb6 {[%emt 0:14:30]} 12. Qe1 {[%emt 0:09:30]} Nfd7 {[%emt 0:09:30]} 13. Bg3 {[%emt 0:06:30]} Re8 {[%emt 0:01:30]} 14. a4 {[%emt 0:21:30]} b4 {[%emt 0:01:30]} 15. Nb1 {[%emt 0:00:30]} e5 {[%emt 0:05:25]} 16. c3 {[%emt 0:02:10]} exd4 {[%emt 0:05:08]} 17. cxd4 {[%emt 0:00:24]} Qe7 {[%emt 0:00:12]} 18. Nbd2 {[%emt 0:03:29]} c5 {[%emt 0:04:41]} 19. Bb5 {[%emt 0:01:41]} Rec8 {[%emt 0:00:31]} 20. dxc5 {[%emt 0:01:55]} Nxc5 {[%emt 0:00:11]} 21. Nd4 {[%emt 0:00:07]} Ne6 {[%emt 0:02:57]} 22. N2f3 {[%emt 0:00:56]} Nc4 {[%emt 0:01:25]} 23. Bh4 {[%emt 0:06:10]} Bf6 {[%emt 0:02:35]} 24. Bxf6 {[%emt 0:00:39]} Qxf6 {[%emt 0:00:02]} 25. Qe2 {[%emt 0:02:14]} Rc7 {[%emt 0:01:03]} 26. Rac1 {[%emt 0:02:09]} Rac8 {[%emt 0:00:05]} 27. Bxc4 {[%emt 0:01:55]} Rxc4 {[%emt 0:00:14]} 28. Rxc4 {[%emt 0:00:46]} dxc4 {[%emt 0:00:25]} 29. Rc1 {[%emt 0:01:02]} Bxf3 {[%emt 0:02:38]} 30. Qxf3 {[%emt 0:00:55]} Qxf3 {[%emt 0:00:09]} 31. Nxf3 {[%emt 0:00:02]} c3 {[%emt 0:00:10]} 32. Kf1 {[%emt 0:02:12]} Nc5 {[%emt 0:00:14]} 33. bxc3 {[%emt 0:00:17]} Nxa4 {[%emt 0:00:01]} 34. Ra1 {[%emt 0:00:07]} Nxc3 {[%emt 0:02:44]} 35. Rxa5 {[%emt 0:00:20]} b3 {[%emt 0:00:08]} 36. Nd2 {[%emt 0:00:30]} b2 {[%emt 0:00:01]} 37. Ra3 {[%emt 0:00:50]} Rd8 {[%emt 0:00:30]} 38. Ke1 {[%emt 0:00:19]} Rxd2 {[%emt 0:00:06]} 39. Rxc3 {[%emt 0:00:43]} b1=Q+ {[%emt 0:00:58]} 40. Kxd2 {[%emt 0:00:00]} Qf1 {[%emt 0:00:00]} 0-1